bitfinex/quotes_SOLUSD_20250528
["timestamp","ask_amount","ask_price","bid_price","bid_amount"]
[1748452476382,5.82886453,171.56,171.54,59.29918049]
[1748452477070,95.32886453,171.56,171.54,59.29918049]
[1748452477685,95.32886453,171.56,171.55,22.85918049]
[1748452479797,89.5,171.56,171.55,22.85918049]
[1748452483202,95.32793077,171.59,171.55,22.85918049]
[1748452483388,95.32793077,171.59,171.56,59.37918049]
[1748452485215,118.18711126,171.59,171.56,36.52]
[1748452485504,0.14216157,171.58,171.56,36.52]
[1748452486677,5.8285248,171.57,171.56,36.52]
[1748452489082,95.3285248,171.57,171.56,36.52]
[1748452490709,0.14216157,171.56,171.47,18.64964886]
[1748452490894,0.14216157,171.56,171.46,11.4962]
[1748452490895,23.14350363,171.54,171.46,11.4962]
[1748452491095,22.85918049,171.53,171.48,59.79918049]
[1748452491294,22.85918049,171.53,171.48,22.85918049]
[1748452491507,22.85918049,171.53,171.49,36.92]
[1748452491691,5.82988398,171.53,171.49,36.92]
[1748452492097,28.68906447,171.53,171.49,36.92]
[1748452492691,5.82988398,171.53,171.49,22.85918049]
[1748452492901,5.82988398,171.53,171.5,36.94]
[1748452494506,28.97309906,171.54,171.5,36.94]
[1748452494688,28.97309906,171.54,171.49,22.85918049]
[1748452494894,89.5,171.53,171.5,36.9]
[1748452496298,22.85918049,171.51,171.41,8.0532]
[1748452496506,22.85918049,171.47,171.42,18.64964886]
[1748452496700,26.0,171.5,171.41,1.6111]
[1748452496701,22.85918049,171.46,171.41,1.6111]
[1748452496891,0.14216157,171.46,171.42,37.88]
[1748452497105,0.14216157,171.46,171.42,60.73918049]
[1748452497793,0.14216157,171.46,171.42,22.85918049]
[1748452498004,0.14216157,171.46,171.42,60.71918049]
[1748452498384,28.83390026,171.46,171.42,37.86]
[1748452499212,28.83390026,171.46,171.41,22.85918049]
[1748452499390,28.83390026,171.46,171.42,37.82]
[1748452500508,5.97471977,171.46,171.42,37.82]
[1748452502118,5.97471977,171.46,171.42,60.67918049]
[1748452502286,5.97471977,171.46,171.42,37.82]
[1748452502621,5.97471977,171.46,171.42,60.65918049]
[1748452502793,23.00134206,171.45,171.41,37.8]
[1748452503117,0.14216157,171.44,171.41,37.8]
[1748452503324,0.14216157,171.44,171.41,60.65918049]
[1748452503619,0.14216157,171.44,171.42,22.85918049]
[1748452503909,5.8325582,171.46,171.43,22.85918049]
[1748452505794,36.3,171.49,171.45,22.85918049]
[1748452505795,10.3,171.49,171.45,22.85918049]
[1748452505997,10.3,171.49,171.47,22.85918049]
[1748452506313,99.8,171.49,171.48,22.85918049]
[1748452506816,10.3,171.49,171.48,22.85918049]
[1748452507814,10.3,171.49,171.47,22.85918049]
[1748452508015,16.13128249,171.49,171.45,37.78]
[1748452508199,16.13128249,171.49,171.47,22.85918049]
[1748452509113,10.3,171.49,171.47,22.85918049]
[1748452510217,89.5,171.5,171.48,22.85918049]
[1748452510520,89.5,171.5,171.49,22.85918049]
[1748452511907,5.82784544,171.59,171.5,18.64964886]
[1748452512108,5.82784544,171.59,171.55,22.85918049]
[1748452512313,5.82784544,171.59,171.56,22.85918049]
[1748452512826,0.14216157,171.58,171.57,22.85918049]
[1748452513335,1.5964,171.62,171.57,22.85918049]
[1748452513630,1.5964,171.62,171.59,22.85918049]
[1748452513815,5.82682671,171.62,171.59,22.85918049]
[1748452514309,0.14216157,171.61,171.59,22.85918049]
[1748452514506,5.82682671,171.62,171.59,22.85918049]
[1748452515532,0.14216157,171.61,171.59,22.85918049]
[1748452516412,5.82750582,171.6,171.55,37.68]
[1748452516634,5.82750582,171.6,171.58,22.85918049]
[1748452517217,5.82750582,171.6,171.59,22.85918049]
[1748452517822,5.82750582,171.6,171.58,22.85918049]
[1748452519335,0.14216157,171.61,171.58,22.85918049]
[1748452519522,0.14216157,171.61,171.59,22.85918049]
[1748452520735,0.14216157,171.61,171.6,22.85918049]
[1748452521326,5.82750582,171.6,171.59,22.85918049]
[1748452521718,89.5,171.61,171.59,22.85918049]
[1748452521920,10.3,171.63,171.59,22.85918049]
[1748452521921,10.3,171.63,171.6,22.85918049]
[1748452522233,5.82614775,171.64,171.62,22.85918049]
[1748452522434,5.82614775,171.64,171.63,22.85918049]
[1748452523216,137.22183384,171.68,171.63,22.85918049]
[1748452523217,0.14216157,171.65,171.63,22.85918049]
[1748452523417,5.82445104,171.69,171.64,22.85918049]
[1748452523725,5.82445104,171.69,171.63,60.51918049]
[1748452523726,5.82445104,171.69,171.67,22.85918049]
[1748452527543,89.5,171.72,171.68,22.85918049]
[1748452527723,95.32389094,171.71,171.7,22.85918049]
[1748452528044,95.32389094,171.71,171.69,22.85918049]
[1748452528343,95.32389094,171.71,171.67,60.49918049]
[1748452528344,0.14216157,171.7,171.67,60.49918049]
[1748452528541,0.14216157,171.7,171.68,22.85918049]
[1748452530327,5.82445104,171.69,171.68,22.85918049]
[1748452530545,5.8242266,171.7,171.68,22.85918049]
[1748452530721,5.8242266,171.7,171.69,22.85918049]
[1748452532020,89.5,171.71,171.69,22.85918049]
[1748452532251,89.5,171.71,171.7,60.45918049]
[1748452532757,5.82313532,171.73,171.7,60.45918049]
[1748452533273,31.82313532,171.73,171.7,37.6]
[1748452533426,31.82313532,171.73,171.72,22.85918049]
[1748452533764,5.82313532,171.73,171.72,22.85918049]
[1748452535028,5.82313532,171.73,171.7,37.6]
[1748452535227,5.82313532,171.73,171.72,22.85918049]
[1748452536357,31.82285656,171.74,171.72,22.85918049]
[1748452537083,5.82285656,171.74,171.72,22.85918049]
[1748452537649,20.37974487,171.74,171.7,37.6]
[1748452537870,23.14350363,171.71,171.66,22.85918049]
[1748452538076,23.14350363,171.71,171.67,37.62]
[1748452538286,0.28432314,171.71,171.67,60.47918049]
[1748452538571,5.82411182,171.7,171.68,22.85918049]
[1748452539572,89.5,171.72,171.69,22.85918049]
[1748452539573,95.32351509,171.72,171.69,22.85918049]
[1748452540663,112.35918049,171.72,171.67,60.47918049]
[1748452540875,89.5,171.72,171.68,22.85918049]
[1748452541174,89.5,171.72,171.69,22.85918049]
[1748452541357,89.5,171.72,171.7,37.58]
[1748452541557,5.823211,171.73,171.7,37.58]
[1748452541774,89.5,171.75,171.72,22.85918049]
[1748452541975,22.85918049,171.76,171.73,37.6]
[1748452542357,0.14216157,171.75,171.73,37.6]
[1748452542676,23.00134206,171.75,171.73,37.6]
[1748452542847,5.82275532,171.74,171.73,37.6]
[1748452543049,5.96491689,171.74,171.73,37.6]
[1748452543281,95.46491689,171.74,171.73,37.6]
[1748452543454,118.32409738,171.74,171.73,37.6]
[1748452543974,95.46491689,171.74,171.71,37.58]
[1748452544174,95.32275532,171.74,171.71,60.43918049]
[1748452544574,118.18193581,171.74,171.71,37.58]
[1748452544951,112.35918049,171.73,171.71,37.58]
[1748452546978,28.68261398,171.72,171.71,37.58]
[1748452547792,28.82477555,171.72,171.66,1.5541]
[1748452547998,22.85918049,171.69,171.66,1.5541]
[1748452548158,22.85918049,171.7,171.67,37.54]
[1748452548487,22.85918049,171.71,171.66,24.41328049]
[1748452548654,22.85918049,171.71,171.67,37.56]
[1748452549361,28.68323766,171.71,171.66,24.41328049]
[1748452549565,28.68323766,171.71,171.67,37.54]
[1748452551065,89.5,171.7,171.67,37.54]
[1748452555692,112.35918049,171.7,171.67,37.54]
[1748452562581,89.5,171.7,171.67,37.54]
[1748452562884,112.35918049,171.7,171.67,37.54]
[1748452575917,112.35918049,171.7,171.67,60.39918049]
[1748452575918,89.5,171.7,171.67,60.39918049]
[1748452576107,112.35918049,171.7,171.67,37.54]
[1748452579904,112.35918049,171.7,171.67,37.12]
[1748452579905,22.85918049,171.68,171.67,37.12]
[1748452580098,22.85918049,171.68,171.62,22.85918049]
[1748452580321,22.85918049,171.68,171.63,37.14]
[1748452580523,22.85918049,171.66,171.63,37.14]
[1748452580911,22.85918049,171.64,171.6,22.85918049]
[1748452581212,22.85918049,171.63,171.59,22.85918049]
[1748452581520,22.85918049,171.64,171.6,37.12]
[1748452582721,28.68556313,171.64,171.6,37.12]
[1748452583328,22.85918049,171.63,171.61,37.1]
[1748452583895,5.82638264,171.64,171.59,22.85918049]
[1748452584149,22.85918049,171.63,171.6,37.08]
[1748452584904,28.68556313,171.64,171.59,22.85918049]
[1748452585103,5.82638264,171.64,171.6,59.93918049]
[1748452585424,23.00134206,171.65,171.6,59.93918049]
[1748452585624,23.00134206,171.65,171.61,22.85918049]
[1748452586307,5.96816456,171.65,171.61,22.85918049]
[1748452586507,28.82734505,171.65,171.6,59.93918049]
[1748452587005,22.85918049,171.62,171.58,18.64964886]
[1748452587210,22.85918049,171.62,171.59,37.06]
[1748452587406,22.85918049,171.63,171.59,22.85918049]
[1748452587716,22.85918049,171.63,171.6,37.04]
[1748452588231,22.85918049,171.63,171.61,37.02]
[1748452588403,0.14216157,171.65,171.61,37.02]
[1748452588607,22.85918049,171.65,171.61,59.87918049]
[1748452589806,28.68501637,171.65,171.61,59.87918049]
[1748452592620,89.5,171.64,171.61,59.87918049]
[1748452593220,89.5,171.64,171.61,37.02]
[1748452596635,118.18544165,171.64,171.61,37.02]
[1748452597143,95.32626116,171.64,171.61,37.02]
[1748452597316,118.18544165,171.64,171.61,37.02]
[1748452597520,22.85918049,171.63,171.57,10.28]
[1748452597719,22.85918049,171.62,171.58,36.9]
[1748452597946,22.85918049,171.63,171.58,59.75918049]
[1748452598523,95.32686059,171.62,171.58,59.75918049]
[1748452598932,89.5,171.62,171.59,22.85918049]
[1748452599733,89.5,171.62,171.6,59.73918049]
[1748452599937,138.35918049,171.67,171.61,22.85918049]
[1748452600253,89.5,171.67,171.63,22.85918049]
[1748452600436,89.5,171.67,171.64,59.73918049]
[1748452600630,89.5,171.67,171.65,36.88]
[1748452601424,10.28,171.69,171.65,59.73918049]
[1748452601643,10.28,171.69,171.66,22.85918049]
[1748452601848,10.28,171.69,171.67,36.86]
[1748452602247,89.5,171.7,171.67,36.86]
[1748452602428,89.5,171.7,171.69,22.85918049]
[1748452602762,89.5,171.7,171.69,59.71918049]
[1748452602927,5.96534095,171.73,171.69,59.71918049]
[1748452602928,5.82317938,171.73,171.69,59.71918049]
[1748452603124,5.82317938,171.73,171.7,22.85918049]
[1748452603459,99.56,171.74,171.71,59.71918049]
[1748452603633,99.56,171.74,171.72,36.84]
[1748452603837,10.06,171.74,171.72,59.69918049]
[1748452604228,5.82247727,171.75,171.72,59.69918049]
[1748452607149,5.82173676,171.78,171.74,22.85918049]
[1748452607363,5.82173676,171.78,171.74,59.65918049]
[1748452609959,28.68091725,171.78,171.74,36.8]
[1748452610557,23.00134206,171.77,171.74,36.8]
[1748452610766,5.82207731,171.76,171.74,36.8]
[1748452611148,28.6812578,171.76,171.74,36.8]
[1748452611357,28.6812578,171.76,171.69,26.0]
[1748452611533,28.6812578,171.76,171.71,22.85918049]
[1748452612753,22.85918049,171.73,171.67,26.0]
[1748452612933,22.85918049,171.73,171.68,59.57918049]
[1748452613454,0.14216157,171.73,171.69,22.85918049]
[1748452613629,23.00134206,171.73,171.68,59.57918049]
[1748452614637,23.00134206,171.73,171.69,22.85918049]
[1748452615060,5.82343349,171.72,171.69,22.85918049]
[1748452615248,89.5,171.71,171.69,22.85918049]
[1748452615666,89.5,171.71,171.69,59.55918049]
[1748452616964,89.5,171.71,171.69,22.85918049]
[1748452617163,95.32377263,171.71,171.7,36.68]
[1748452618354,89.5,171.71,171.7,36.68]
[1748452619137,5.82344546,171.72,171.7,36.68]
[1748452620666,5.82309439,171.73,171.7,59.53918049]
[1748452620846,95.32281599,171.74,171.71,22.85918049]
[1748452621335,95.32281599,171.74,171.72,36.64]
[1748452622259,23.14350363,171.73,171.72,36.64]
[1748452622463,23.14350363,171.73,171.7,36.62]
[1748452622654,5.82343349,171.72,171.69,36.64]
[1748452624354,5.82343349,171.72,171.68,22.85918049]
[1748452624551,5.82343349,171.72,171.69,36.6]
[1748452624954,28.68261398,171.72,171.69,36.6]
[1748452625973,5.82343349,171.72,171.69,36.6]
[1748452626472,5.82343349,171.72,171.68,22.85918049]
[1748452626681,5.82343349,171.72,171.69,36.62]
[1748452628571,5.82343349,171.72,171.69,36.58]
[1748452631058,95.32393116,171.71,171.69,36.58]
[1748452633265,95.32393116,171.71,171.69,59.43918049]
[1748452633266,89.5,171.71,171.69,59.43918049]
[1748452633469,89.5,171.71,171.7,22.85918049]
[1748452634384,89.5,171.71,171.69,36.58]
[1748452634587,89.5,171.71,171.7,22.85918049]
[1748452636881,89.5,171.74,171.7,22.85918049]
[1748452637075,89.5,171.74,171.72,22.85918049]
[1748452637256,89.5,171.74,171.73,36.58]
[1748452638073,89.5,171.74,171.73,59.43918049]
[1748452638281,89.5,171.76,171.73,59.43918049]
[1748452638579,89.5,171.76,171.75,22.85918049]
[1748452638773,89.5,171.76,171.75,59.43918049]
[1748452639107,89.5,171.76,171.75,36.58]
[1748452640379,95.32207731,171.76,171.75,36.58]
[1748452642358,89.5,171.76,171.75,36.58]
[1748452643300,89.5,171.76,171.75,59.43918049]
[1748452646565,89.5,171.76,171.75,36.58]
[1748452646868,89.5,171.76,171.75,59.43918049]
[1748452647065,95.32207731,171.76,171.75,36.58]
[1748452647774,95.32207731,171.76,171.74,36.56]
[1748452648183,95.32207731,171.76,171.68,18.64964886]
[1748452648402,95.32207731,171.76,171.72,22.85918049]
[1748452648403,89.5,171.75,171.72,22.85918049]
[1748452648589,89.5,171.75,171.73,36.56]
[1748452649411,5.82275532,171.74,171.73,36.56]
[1748452650390,95.32250264,171.75,171.73,22.85918049]
[1748452650576,95.32250264,171.75,171.73,59.41918049]
[1748452651311,95.32250264,171.75,171.73,36.56]
[1748452654308,95.32250264,171.75,171.73,59.41918049]
[1748452654309,89.5,171.75,171.73,59.41918049]
[1748452654480,89.5,171.75,171.74,22.85918049]
[1748452657595,95.32116746,171.79,171.74,22.85918049]
[1748452657782,89.5,171.78,171.76,22.85918049]
[1748452657987,89.5,171.78,171.77,36.56]
[1748452659487,89.5,171.78,171.77,59.41918049]
[1748452659687,99.32,171.8,171.77,59.41918049]
[1748452660008,89.5,171.8,171.79,22.85918049]
[1748452660230,89.5,171.8,171.79,59.41918049]
[1748452660586,5.82009138,171.82,171.79,59.41918049]
[1748452661805,5.82009138,171.82,171.8,22.85918049]
[1748452661988,5.82009138,171.82,171.81,36.56]
[1748452669939,95.31973586,171.83,171.81,59.41918049]
[1748452671205,5.05949276,171.85,171.82,41.50882935]
[1748452671511,33.73770147,171.85,171.83,36.54]
[1748452671708,33.73770147,171.85,171.76,32.4267]
[1748452671709,0.14216157,171.83,171.82,36.54]
[1748452671909,0.14216157,171.83,171.81,36.54]
[1748452671910,23.00134206,171.83,171.81,36.54]
[1748452672119,23.00134206,171.83,171.8,36.54]
[1748452672410,5.82004423,171.82,171.8,36.54]
[1748452673635,5.82004423,171.82,171.79,22.85918049]
[1748452673932,5.82004423,171.82,171.8,36.54]
[1748452674840,5.82004423,171.82,171.79,22.85918049]
[1748452675136,5.82004423,171.82,171.8,59.39918049]
[1748452676315,5.81963893,171.84,171.81,22.85918049]
[1748452676527,5.05949276,171.85,171.83,22.85918049]
[1748452676528,10.87865006,171.85,171.83,22.85918049]
[1748452676734,10.87865006,171.85,171.84,59.39918049]
[1748452677327,5.05949276,171.85,171.84,59.39918049]
[1748452677729,5.05949276,171.85,171.84,36.54]
[1748452678221,5.05949276,171.85,171.84,59.39918049]
[1748452681827,10.87852098,171.85,171.84,36.54]
[1748452682030,10.87852098,171.85,171.84,59.39918049]
[1748452683448,5.05949276,171.85,171.84,59.39918049]
[1748452683620,10.87852098,171.85,171.8,44.64964886]
[1748452683820,10.87852098,171.85,171.82,22.85918049]
[1748452684026,22.85918049,171.84,171.8,22.85918049]
[1748452684268,0.14216157,171.84,171.81,36.54]
[1748452684649,5.81970552,171.83,171.81,59.39918049]
[1748452684830,0.14216157,171.84,171.81,59.39918049]
[1748452684831,5.81944485,171.84,171.82,22.85918049]
[1748452685245,5.81944485,171.84,171.82,59.39918049]
[1748452685853,10.87861949,171.85,171.82,59.39918049]
[1748452687041,10.87861949,171.85,171.83,22.85918049]
[1748452687854,5.05949276,171.85,171.84,22.85918049]
[1748452688369,10.87852098,171.85,171.82,36.54]
[1748452688536,10.87852098,171.85,171.83,22.85918049]
[1748452689360,5.05949276,171.85,171.83,22.85918049]
[1748452689738,5.05949276,171.85,171.84,22.85918049]
[1748452693254,5.05949276,171.85,171.83,22.85918049]
[1748452694639,10.87853912,171.85,171.83,22.85918049]
[1748452695035,10.87853912,171.85,171.82,36.54]
[1748452695262,10.87853912,171.85,171.83,22.85918049]
[1748452695972,10.87853912,171.85,171.82,59.39918049]
[1748452699158,10.87853912,171.85,171.83,22.85918049]
[1748452700969,5.05949276,171.85,171.84,22.85918049]
[1748452702477,5.05949276,171.85,171.84,41.50882935]
[1748452703274,5.05949276,171.85,171.84,73.3281962]
[1748452704073,15.57609104,171.94,171.85,18.64964886]
[1748452704368,15.57609104,171.94,171.9,14.60115877]
[1748452704573,15.57609104,171.94,171.91,36.52]
[1748452704754,15.57609104,171.94,171.91,51.12115877]
[1748452704956,5.81609104,171.94,171.92,14.60115877]
[1748452705145,5.81609104,171.94,171.91,36.52]
[1748452705349,5.81576816,171.95,171.92,14.60115877]
[1748452705576,5.81576816,171.95,171.91,36.52]
[1748452705879,5.81576816,171.95,171.91,51.12115877]
[1748452706063,5.81576816,171.95,171.91,59.3340679]
[1748452706374,31.81576816,171.95,171.91,59.3340679]
[1748452706973,31.81576816,171.95,171.91,36.52]
[1748452707171,31.81576816,171.95,171.91,59.3340679]
[1748452708358,31.81576816,171.95,171.92,22.8140679]
[1748452709460,5.81576816,171.95,171.92,22.8140679]
[1748452711185,0.14216157,171.94,171.91,36.52]
[1748452711566,0.28432314,171.94,171.9,36.52]
[1748452711803,0.28432314,171.94,171.9,59.3340679]
[1748452712467,6.1005522,171.94,171.9,59.3340679]
[1748452712887,6.1005522,171.94,171.89,22.8140679]
[1748452712888,28.9146201,171.94,171.89,22.8140679]
[1748452713057,0.14216157,171.92,171.9,36.5]
[1748452713979,22.8140679,171.91,171.85,18.64964886]
[1748452714283,0.14216157,171.9,171.87,22.8140679]
[1748452714486,0.14216157,171.9,171.88,22.8140679]
[1748452714667,0.14216157,171.9,171.87,36.5]
[1748452715074,0.14216157,171.9,171.88,22.8140679]
[1748452715269,95.31709228,171.91,171.88,22.8140679]
[1748452715471,89.5,171.91,171.87,36.5]
[1748452715777,95.31710708,171.91,171.89,22.8140679]
[1748452715980,89.5,171.91,171.89,22.8140679]
[1748452716674,89.5,171.91,171.9,36.5]
[1748452719673,5.81672758,171.92,171.9,36.5]
[1748452720372,95.45854035,171.93,171.9,36.5]
[1748452720692,118.27260825,171.93,171.9,36.5]
[1748452721070,118.27260825,171.93,171.81,32.5740679]
[1748452721071,23.09839104,171.92,171.81,32.5740679]
[1748452721286,89.5,171.91,171.87,22.8140679]
[1748452721472,89.5,171.91,171.88,36.5]
[1748452722291,5.81733566,171.9,171.88,36.5]
[1748452722592,5.81733566,171.9,171.89,36.5]
[1748452722772,5.81733566,171.9,171.87,22.8140679]
[1748452722968,5.81733566,171.9,171.88,36.5]
[1748452723296,5.81733566,171.9,171.89,36.5]
[1748452725273,5.95949723,171.9,171.89,36.5]
[1748452725690,95.45949723,171.9,171.89,36.5]
[1748452725882,95.45949723,171.9,171.88,36.5]
[1748452726596,22.95622947,171.89,171.83,18.64964886]
[1748452726823,112.3140679,171.88,171.84,59.3140679]
[1748452727183,112.3140679,171.88,171.85,36.5]
[1748452727570,112.3140679,171.88,171.84,22.8140679]
[1748452727770,112.3140679,171.88,171.85,36.5]
[1748452729375,118.13235963,171.88,171.85,36.5]
[1748452732524,0.14216157,171.87,171.85,36.5]
[1748452733293,22.95622947,171.87,171.85,36.5]
[1748452733600,5.81868963,171.86,171.85,36.5]
[1748452733795,0.14216157,171.85,171.8,27.6268]
[1748452734007,22.8140679,171.83,171.81,36.5]
[1748452734362,22.8140679,171.84,171.81,36.5]
[1748452735015,28.63361648,171.84,171.81,36.5]
[1748452735220,28.91751577,171.85,171.81,59.3140679]
[1748452736619,89.5,171.86,171.83,22.8140679]
[1748452736911,89.5,171.86,171.84,36.52]
[1748452737214,28.63254794,171.87,171.84,36.52]
[1748452740423,95.31848004,171.87,171.84,36.52]
[1748452741113,89.5,171.87,171.84,59.3340679]
[1748452741327,95.31839619,171.87,171.84,59.3340679]
[1748452741526,89.5,171.87,171.84,59.3340679]
[1748452743331,89.5,171.87,171.85,22.8140679]
[1748452743520,89.5,171.87,171.86,59.3340679]
[1748452744018,5.81713308,171.91,171.86,59.3340679]
[1748452744223,5.81713308,171.91,171.88,22.8140679]
[1748452744420,5.81713308,171.91,171.89,36.52]
[1748452744822,15.57675947,171.92,171.89,36.52]
[1748452748139,38.39082737,171.92,171.89,36.52]
[1748452750141,10.57675947,171.92,171.89,36.52]
[1748452751044,0.28432314,171.91,171.89,36.52]
[1748452751223,0.14216157,171.89,171.87,36.5]
[1748452751423,5.81801256,171.88,171.84,48.8140679]
[1748452751634,5.81801256,171.88,171.85,36.5]
[1748452751835,5.81801256,171.88,171.85,59.3140679]
[1748452752320,5.81801256,171.88,171.86,36.5]
[1748452753526,5.81801256,171.88,171.83,22.8140679]
[1748452753731,5.81801256,171.88,171.85,36.5]
[1748452753925,5.81801256,171.88,171.83,22.8140679]
[1748452754139,5.81801256,171.88,171.85,36.5]
[1748452755234,95.31801256,171.88,171.85,36.5]
[1748452758741,89.64216157,171.87,171.85,36.5]
[1748452759143,5.81868963,171.86,171.85,36.5]
[1748452759749,5.81868963,171.86,171.84,36.5]
[1748452760135,22.8140679,171.85,171.81,9.76]
[1748452760327,22.8140679,171.85,171.82,36.5]
[1748452760650,0.14216157,171.85,171.82,36.5]
[1748452760847,0.14216157,171.85,171.81,22.8140679]
[1748452761051,0.14216157,171.85,171.82,36.5]
[1748452761236,5.81936685,171.84,171.82,36.5]
[1748452761439,5.81936685,171.84,171.8,22.8140679]
[1748452761635,5.81936685,171.84,171.81,36.5]
[1748452762340,0.14216157,171.85,171.82,22.8140679]
[1748452762546,5.96125385,171.85,171.81,36.5]
[1748452762737,48.8140679,171.82,171.76,9.76]
[1748452762945,48.8140679,171.82,171.77,36.5]
[1748452762946,22.8140679,171.8,171.77,36.5]
[1748452763146,5.82072176,171.8,171.76,22.8140679]
[1748452763347,5.96288333,171.8,171.77,36.5]
[1748452765658,5.96288333,171.8,171.78,36.5]
[1748452769149,28.77695123,171.8,171.78,36.5]
[1748452769760,5.96288333,171.8,171.78,36.52]
[1748452773538,0.14216157,171.78,171.74,1.5081]
[1748452773864,0.14216157,171.78,171.75,36.52]
[1748452774557,5.96384001,171.78,171.75,59.3340679]
[1748452774764,5.96384001,171.78,171.75,36.52]
[1748452774940,5.96384001,171.78,171.75,59.3340679]
[1748452775559,5.96384001,171.78,171.75,22.8140679]
[1748452775784,5.96384001,171.78,171.76,36.52]
[1748452777636,5.96384001,171.78,171.75,22.8140679]
[1748452777837,5.96384001,171.78,171.76,36.52]
[1748452779845,28.77790791,171.78,171.74,22.8140679]
[1748452780159,5.96384001,171.78,171.75,36.52]
[1748452780359,28.77790791,171.78,171.75,36.52]
[1748452782338,22.8140679,171.77,171.75,36.52]
[1748452782544,0.14216157,171.76,171.72,22.8140679]
[1748452782771,22.8140679,171.73,171.69,18.64964886]
[1748452783069,22.8140679,171.72,171.67,24.3557679]
[1748452783373,0.14216157,171.71,171.68,36.52]
[1748452783846,0.14216157,171.71,171.68,59.3340679]
[1748452784465,0.14216157,171.71,171.68,22.8140679]
[1748452784647,0.14216157,171.71,171.69,36.52]
[1748452784844,5.96598176,171.71,171.64,18.64964886]
[1748452785043,5.96598176,171.71,171.67,22.8140679]
[1748452785273,5.96598176,171.71,171.68,36.52]
[1748452785444,5.96598176,171.71,171.68,59.3340679]
[1748452785650,0.28432314,171.71,171.68,59.3340679]
[1748452786063,0.28432314,171.71,171.68,36.52]
[1748452786270,6.10811215,171.71,171.68,36.52]
[1748452786461,6.10811215,171.71,171.68,59.3340679]
[1748452787152,2.91535452,171.79,171.68,59.3340679]
[1748452787153,9.76,171.8,171.7,22.8140679]
[1748452787359,22.8140679,171.79,171.74,22.8140679]
[1748452787566,22.8140679,171.75,171.71,36.52]
[1748452787774,22.95622947,171.72,171.67,36.52]
[1748452788068,22.8140679,171.69,171.65,36.52]
[1748452788268,22.8140679,171.69,171.65,59.3340679]
[1748452788477,0.14216157,171.7,171.66,22.8140679]
[1748452788675,5.96637113,171.7,171.66,22.8140679]
[1748452788847,0.14216157,171.7,171.67,22.8140679]
[1748452789044,5.96630343,171.7,171.67,22.8140679]
[1748452789264,0.14216157,171.7,171.67,22.8140679]
[1748452789573,15.58286589,171.74,171.69,22.8140679]
[1748452789757,15.58286589,171.74,171.7,59.3340679]
[1748452790068,22.95622947,171.73,171.7,36.52]
[1748452790768,5.82343349,171.72,171.7,36.52]
[1748452791274,0.14216157,171.71,171.7,36.52]
[1748452792071,0.14216157,171.71,171.67,22.8140679]
[1748452792247,0.14216157,171.71,171.68,36.52]
[1748452793069,5.96627063,171.71,171.68,36.52]
[1748452793444,28.78033853,171.71,171.68,36.52]
[1748452793645,0.14216157,171.71,171.68,36.52]
[1748452793868,0.14216157,171.71,171.68,59.3340679]
[1748452793869,5.82380383,171.71,171.68,59.3340679]
[1748452794059,5.82380383,171.71,171.68,36.52]
[1748452794570,0.14216157,171.7,171.68,36.52]
[1748452794871,22.95622947,171.7,171.65,22.8140679]
[1748452795055,5.82445104,171.69,171.65,22.8140679]
[1748452795376,5.82445104,171.69,171.66,36.52]
[1748452795849,0.14216157,171.7,171.66,59.3340679]
[1748452796045,5.82343349,171.72,171.68,22.8140679]
[1748452796267,15.5830202,171.74,171.7,22.8140679]
[1748452796458,15.5830202,171.74,171.7,59.3340679]
[1748452797772,0.28432314,171.73,171.7,36.52]
[1748452797951,23.09839104,171.73,171.7,36.52]
[1748452798346,0.28432314,171.73,171.7,36.52]
[1748452798576,0.28432314,171.73,171.7,59.3340679]
[1748452798752,15.5830202,171.74,171.71,22.8140679]
[1748452799173,15.5830202,171.74,171.7,36.52]
[1748452799382,15.5830202,171.74,171.71,22.8140679]
[1748452799584,15.5830202,171.74,171.7,59.3340679]
[1748452801254,38.3970881,171.74,171.7,59.3340679]
[1748452802768,0.28432314,171.73,171.7,36.52]
[1748452802973,0.28432314,171.71,171.66,26.0]
[1748452803180,89.5,171.7,171.67,36.52]
[1748452803359,89.5,171.7,171.68,36.52]
[1748452803878,89.5,171.7,171.68,59.3340679]
[1748452805281,118.13824645,171.7,171.68,36.52]